Cogmind - Beta 17 @@@ ROGUE MODE // 2026.08.19 @ 15:16:53 Player: Zane Result: Destroyed by S-43 Plague with Heavy Machine Gun Performance ------------- Evolutions (6) 3000 Regions Visited (18) 3600 Robots Destroyed (112) 560 Value Destroyed (3081) 3081 Prototype IDs (41) 820 Alien Tech Used (0) 0 Bonus (1621) 1621 TOTAL SCORE: 12682 Bonus ------- Follower Combat Kills 21 Aligned with FarCom 300 Met Imprinter 300 Met Warlord at Base 500 MAIN.C Attacked Warlord 500 Cogmind --------- Core Integrity 0/1150 Matter 300/300 Energy 100/100 System Corruption 0% Temperature Cool (0) Movement Core (50) Location -3/Proximity Caves Parts ------- > --- POWER (2) -------- (None) > --- PROPULSION (5) --- (None) > --- UTILITY (10) ----- Machine Analyzer Advanced Terrain Scan Processor > --- WEAPON (2) ------- (None) > --- INVENTORY (5) ---- Micro Fission Core Heart of Steel Power Sword Peak State ------------ > --- POWER ------------ Micro Fission Core Micro Fission Core > --- PROPULSION ------- Cooled Aerolev Unit Cooled Aerolev Unit Cooled Aerolev Unit Gravmag Array > --- UTILITY ---------- Advanced Matter Compressor Machine Analyzer Improved Terrain Scanner Advanced Terrain Scan Processor Quantum Capacitor Improved Transmission Jammer Hacking Suite Improved Hacking Suite System Shield > --- WEAPON ----------- Thermic Laser Cooled Particle Cannon > --- INVENTORY -------- Hardened Light Armor Plating Heart of Steel Hardcell Cannon [Rating: 102] Favorites ----------- Power Micro Fission Core Engine Improved Deuterium Engine Power Core Micro Fission Core Propulsion Cooled Aerolev Unit Treads Light Treads Leg Aluminum Leg Wheel Wheel Hover Unit Cooled Aerolev Unit Flight Unit Xenon Bombardment Thruster Utility Small Storage Unit Device Improved Terrain Scanner Storage Small Storage Unit Processor Machine Analyzer Hackware Hacking Suite Protection Improved Light Armor Plating Weapon Precision Assault Rifle Energy Gun Medium Laser Energy Cannon Cooled Particle Cannon Ballistic Gun Precision Assault Rifle Ballistic Cannon Hardcell Cannon Launcher Proton Missile Launcher Slashing Weapon Scythe Build | -11 -10 -10 -10 -9 -8 -7 -7 -7 -6 -6 -6 -6 -5 -4 -4 -4 -4 -3 ------- Run | Yrd Mat Min Exi Min Mat Fac Low Zio Pro Fac Low Low Fac Fac Upp Upp War Pro Slots Evolved 12 | . . . . . 4 2 . . . 2 . . 2 2 . . . . Power 1 | . . . . . . 1 . . . . . . . . . . . . Propulsion 3 | . . . . . 1 1 . . . . . . 1 . . . . . Utility 8 | . . . . . 3 . . . . 2 . . 1 2 . . . . Weapon . | . . . . . . . . . . . . . . . . . . . Parts Attached 114 | 7 3 1 . 2 19 16 1 23 6 17 3 . 7 6 1 1 . 1 Power 21 | 1 1 . . 1 3 3 . 5 . 3 2 . . 2 . . . . Engine 13 | 1 1 . . 1 1 2 . 5 . 2 . . . . . . . . Core 8 | . . . . . 2 1 . . . 1 2 . . 2 . . . . Reactor . | . . . . . . . . . . . . . . . . . . . Propulsion 35 | 2 . 1 . . 6 4 . 9 2 6 . . 2 1 1 1 . . Treads 2 | 2 . . . . . . . . . . . . . . . . . . Leg 12 | . . . . . 3 . . 7 1 1 . . . . . . . . Wheel 1 | . . 1 . . . . . . . . . . . . . . . . Hover 19 | . . . . . 3 4 . 2 . 5 . . 2 1 1 1 . . Flight 1 | . . . . . . . . . 1 . . . . . . . . . Utility 36 | 2 . . . . 6 7 . 5 3 5 1 . 4 2 . . . 1 Device 16 | 1 . . . . 2 5 . 2 1 1 . . 2 1 . . . 1 Storage 4 | 1 . . . . 1 . . . 1 . . . . 1 . . . . Processor 5 | . . . . . 1 1 . . 1 1 1 . . . . . . . Hackware 4 | . . . . . 1 . . . . 2 . . 1 . . . . . Protection 7 | . . . . . 1 1 . 3 . 1 . . 1 . . . . . Artifact . | . . . . . . . . . . . . . . . . . . . Weapon 22 | 2 2 . . 1 4 2 1 4 1 3 . . 1 1 . . . . Energy Gun 8 | 2 . . . . 1 . . 3 . 1 . . 1 . . . . . Energy Cannon 1 | . . . . . . . . . . 1 . . . . . . . . Ballistic Gun 7 | . 1 . . . 3 2 . 1 . . . . . . . . . . Ballistic Cannon 1 | . . . . . . . . . . . . . . 1 . . . . Launcher 3 | . 1 . . 1 . . 1 . . . . . . . . . . . Special Weapon . | . . . . . . . . . . . . . . . . . . . Impact Weapon . | . . . . . . . . . . . . . . . . . . . Slashing Weapon 2 | . . . . . . . . . 1 1 . . . . . . . . Piercing Weapon . | . . . . . . . . . . . . . . . . . . . Special Melee Weapon . | . . . . . . . . . . . . . . . . . . . Unidentified Prototypes 4 | . . . . . 1 . . . . 2 . . . 1 . . . . Corrupted Parts 1 | . . . . . . . . 1 . . . . . . . . . . System Corruption 5 | . . . . . . . . 5 . . . . . . . . . . Parts Lost 70 | . 1 . . . 14 5 . 28 . 3 2 . . 2 . 4 . 11 Power 11 | . . . . . 2 1 . 5 . . 1 . . 1 . . . 1 Propulsion 26 | . 1 . . . 4 1 . 11 . 3 . . . 1 . 2 . 3 Utility 21 | . . . . . 4 3 . 6 . . 1 . . . . 1 . 6 Weapon 12 | . . . . . 4 . . 6 . . . . . . . 1 . 1 Highest Loss Streak 13 | . 1 . . . 13 2 . 7 . 3 2 . . 1 . 4 . 8 To Critical Strikes 2 | . . . . . . . . 1 . . . . . 1 . . . . Average Backups 5 | 2 5 7 8 8 6 7 8 7 2 4 3 3 2 3 2 2 2 3 Power . | . . . . . . . . . . . . . . . . . 1 1 Propulsion 1 | 2 2 3 3 3 1 1 1 . . . . . . . . . . . Utility 1 | . 2 3 4 3 1 2 4 3 1 1 1 1 . 1 . . . . Weapon 1 | . . 1 1 1 2 3 3 2 1 2 1 1 1 1 1 . . 1 Tool/Special . | . . . . . . . . . . . . . . . . . . . Unused Backups 19 | . 3 1 1 1 1 5 . 1 . 2 1 . . . . . . 3 Power 1 | . . . . . . . . . . . . . . . . . . 1 Propulsion 3 | . 2 . . . . 1 . . . . . . . . . . . . Utility 9 | . 1 1 1 1 1 1 . 1 . 1 1 . . . . . . . Weapon 5 | . . . . . . 3 . . . 1 . . . . . . . 1 Tool/Special 1 | . . . . . . . . . . . . . . . . . . 1 Average Slot Usage (%) 88 | . 99 100 100 100 82 90 100 91 63 95 99 100 99 85 84 77 78 45 Engine 7 | . 14 14 14 14 1 6 15 12 7 12 8 6 5 2 . . . . Core 3 | . . . . . 7 6 . . . . 3 6 5 6 10 10 10 5 Treads 3 | . 27 14 14 14 . . . . . . . . . . . . . . Leg 5 | . . . . . 8 11 . 10 13 15 . . . . . . . . Wheel 1 | . . 14 14 14 . . . . . . . . . . . . . . Hover 11 | . . . . . 15 13 30 17 . 3 26 26 28 21 15 16 15 6 Device 12 | . 14 14 14 14 10 7 7 8 6 13 15 13 13 18 15 15 15 8 Storage 5 | . 14 14 14 14 10 12 7 6 2 . . . . . . . . . Processor 9 | . . . . . 1 9 15 12 14 19 13 13 11 10 10 10 10 10 Hackware 5 | . . . . . 4 . . . . 3 13 13 17 15 15 15 15 9 Protection 3 | . . . . . 4 3 7 5 7 8 3 6 3 . 4 1 . . Energy Gun 4 | . 26 14 14 14 5 . . 1 . . 3 6 3 1 3 1 . . Energy Cannon 1 | . . . . . . . . . . 2 6 6 5 4 5 5 5 2 Ballistic Gun 5 | . 1 14 14 11 12 15 10 8 . . . . . . . . . . Slashing Weapon 1 | . . . . . . . . . 7 8 2 . 1 2 . . . . Peak Build Rating 102 | 7 8 8 9 9 21 49 49 53 37 68 70 70 86 102 90 90 84 88 Average Rating 47 | 5 7 7 8 8 16 37 48 46 31 58 66 70 80 89 84 80 84 47 On Entrance 44 | . 7 7 8 9 8 18 49 48 15 37 68 70 70 82 89 90 84 84 Avg Prop Armor Cover (%) 7 | . . 12 12 12 . . . 10 4 1 . . . . . . . . Naked Turns . | . . . . . . . . . . . . . . . . . . . Heaviest Build 44 | 12 14 13 13 14 22 36 39 44 9 41 42 42 44 43 38 33 33 34 Greatest Support 77 | 40 40 10 10 10 30 45 45 77 35 51 45 45 56 56 39 41 41 41 Greatest Overweight (x) 3 | . . 1 1 1 3 3 . 1 . 2 . . . . 1 1 1 3 Average Overweight (x) . | . . 1 1 1 . . . . . . . . . . . . . . Largest Inventory Capacity 8 | 8 8 8 8 8 8 8 8 8 5 5 5 5 5 5 5 5 5 5 Average Capacity 6 | 7 8 8 8 8 8 8 8 7 5 5 5 5 5 5 5 5 5 5 Most Carried 8 | 3 8 8 8 8 8 8 8 8 4 5 5 5 5 5 5 5 5 5 Average Carried 5 | 2 5 7 7 7 6 7 8 7 2 4 4 5 4 5 4 4 4 5 Final Capacity 8 | 8 8 8 8 8 8 8 8 5 5 5 5 5 5 5 5 5 5 5 Final Carried 8 | 3 8 8 8 8 6 8 8 4 4 4 5 5 5 5 4 4 5 5 Class Distribution -------------------- 26% | Scavenger-Mutant 26% | Mutant 14% | Hacker-Scout 8% | Hacker-Ninja 7% | Hacker-Skirmisher 5% | Scavenger-Assassin 5% | Derelict-Assassin 3% | Scout Dominant Class ---------------- Mutant | -10/Materials Mutant | -10/Mines Mutant | -10/Exiles Mutant | -9/Mines Scout | -8/Materials Scavenger-Mutant | -7/Factory Scavenger-Mutant | -7/Lower Caves Scavenger-Mutant | -7/Zion Scavenger-Mutant | -6/Proximity Caves Scavenger-Assassin | -6/Factory Hacker-Scout | -6/Lower Caves Hacker-Scout | -6/Lower Caves Hacker-Scout | -5/Factory Hacker-Ninja | -4/Factory Hacker-Scout | -4/Upper Caves Hacker-Scout | -4/Upper Caves Hacker-Skirmisher | -4/Warlord Mutant | -3/Proximity Caves Resources | -11 -10 -10 -10 -9 -8 -7 -7 -7 -6 -6 -6 -6 -5 -4 -4 -4 -4 -3 ----------- Run | Yrd Mat Min Exi Min Mat Fac Low Zio Pro Fac Low Low Fac Fac Upp Upp War Pro Matter Collected 2702 | 193 117 . . 9 323 303 190 731 209 46 196 . . 175 177 13 10 10 Remotely 67 | . . . . . . 67 . . . . . . . . . . . . Salvage Created 3545 | 38 320 . . 13 424 317 82 1359 . 288 200 . . 370 . 104 . 30 Parts 203 | 3 15 . . 3 28 14 4 96 . 6 10 . . 14 . 6 . 4 Haulers Intercepted . | . . . . . . . . . . . . . . . . . . . Recyclers Shooed 2 | 1 1 . . . . . . . . . . . . . . . . . Parts Field Recycled . | . . . . . . . . . . . . . . . . . . . Retrieved Matter . | . . . . . . . . . . . . . . . . . . . Parts Self-Destructed 27 | . . . . . . . 1 . . . 9 . . . 6 7 . 4 Prevented 6 | . . . . . . . 2 . . . . . . . 2 2 . . Parts Restored . | . . . . . . . . . . . . . . . . . . . Kills | -11 -10 -10 -10 -9 -8 -7 -7 -7 -6 -6 -6 -6 -5 -4 -4 -4 -4 -3 ------- Run | Yrd Mat Min Exi Min Mat Fac Low Zio Pro Fac Low Low Fac Fac Upp Upp War Pro Combat Hostiles Destroyed 65 | . 9 . . 4 17 4 3 7 . 5 8 . . 5 . 2 . 1 Guns 25 | . 5 . . . 5 4 1 2 . . 6 . . 2 . . . . Cannons 11 | . . . . . . . . . . 3 2 . . 3 . 2 . 1 AOE 23 | . 3 . . 4 12 . 2 2 . . . . . . . . . . Classes Destroyed 15 | 1 3 . . . 2 3 . 5 . 1 . . . . . . . . Worker 1 | . . . . . . 1 . . . . . . . . . . . . Tunneler 2 | 2 . . . . . . . . . . . . . . . . . . Recycler 1 | . . . . . . 1 . . . . . . . . . . . . Operator 3 | . 2 . . . . . . . . 1 . . . . . . . . Watcher 3 | . . . . . . . . . . 2 . . . 1 . . . . Swarmer 28 | . 3 . . 4 6 . 3 . . 3 8 . . . . . . 1 Grunt 15 | . 6 . . . 9 . . . . . . . . . . . . . Sentry 8 | . . . . . 1 3 . . . 1 . . . 3 . . . . Hunter 1 | . . . . . 1 . . . . . . . . . . . . . Programmer 6 | . . . . . . 1 . . . 1 . . . 2 . 2 . . Zionite 37 | . . . . . . . . 37 . . . . . . . . . . Tinkerer 3 | . . . . . . . . 3 . . . . . . . . . . Thug 1 | . . . . . . . . 1 . . . . . . . . . . Savage 1 | . . . . . . . . 1 . . . . . . . . . . Marauder 1 | . . . . . . . . 1 . . . . . . . . . . Mutant 4 | . . . . . . . . 4 . . . . . . . . . . Best Kill Streak 15 | 1 3 . . 4 13 2 3 15 . 4 4 . . 2 . 2 . 1 Combat Bots Only 13 | . 3 . . 4 13 1 3 4 . 4 4 . . 2 . 2 . 1 Max Kills in Single Turn 5 | 1 3 . . 4 5 1 1 2 . 1 1 . . 1 . 1 . 1 Gunslinging . | . . . . . . . . . . . . . . . . . . . Exploded 5 | . 3 . . 4 5 . 1 1 . . . . . . . . . . Melee . | . . . . . . . . . . . . . . . . . . . Uniques/NPCs Destroyed . | . . . . . . . . . . . . . . . . . . . Combat | -11 -10 -10 -10 -9 -8 -7 -7 -7 -6 -6 -6 -6 -5 -4 -4 -4 -4 -3 -------- Run | Yrd Mat Min Exi Min Mat Fac Low Zio Pro Fac Low Low Fac Fac Upp Upp War Pro Hostile Shots Fired 964 | . 48 . . 1 140 146 45 253 . 94 37 . . 34 30 18 . 118 Missed 361 | . 13 . . 1 53 66 20 94 . 34 9 . . 8 14 5 . 44 Hits 603 | . 35 . . . 87 80 25 159 . 60 28 . . 26 16 13 . 74 Melee 20 | . . . . . . . . 17 . . . . . . 1 . . 2 Projectile 583 | . 35 . . . 87 80 25 142 . 60 28 . . 26 15 13 . 72 Critical Strikes 32 | . . . . . 3 1 . 14 . 2 . . . 3 . 1 . 8 Actively Blocked 2 | . . . . . . . . 2 . . . . . . . . . . Part Disruptions 2 | . . . . . . 1 . 1 . . . . . . . . . . Damage Taken 9387 | . 414 . . . 1190 642 193 2961 . 670 427 . . 656 333 263 . 1638 Core 2275 | . 56 . . . 276 86 44 518 . 70 73 . . 137 68 19 . 928 Absorbed by Shields . | . . . . . . . . . . . . . . . . . . . Redirected to Shielding 133 | . . . . . 100 . . 33 . . . . . . . . . . Regen/Repaired (Parts) 306 | . . . . . 32 . . . . . . . . 239 . . 35 . Core Remaining (%) 69 | 100 . . . 77 49 . . . 7 . . 83 100 . . . . . Volleys Fired 322 | 6 31 . . 1 29 36 4 103 . 28 13 . . 54 2 9 . 6 Largest 2 | 2 2 . . 1 2 2 2 2 . 2 2 . . 1 1 1 . 1 Hottest 115 | 90 90 . . 30 80 56 67 114 . 115 115 . . 90 90 90 . 90 Shots Fired 504 | 12 62 . . 1 57 62 5 175 . 36 23 . . 54 2 9 . 6 Gun 363 | 12 61 . . . 53 62 1 151 . 8 10 . . 5 . . . . Cannon 107 | . . . . . . . . . . 28 13 . . 49 2 9 . 6 Launcher 34 | . 1 . . 1 4 . 4 24 . . . . . . . . . . Special . | . . . . . . . . . . . . . . . . . . . Kinetic 227 | . . . . . 41 62 1 108 . . . . . 15 . . . . Thermal 231 | 12 61 . . . . . . 43 . 36 23 . . 39 2 9 . 6 Explosive 6 | . 1 . . 1 4 . . . . . . . . . . . . . Electromagnetic 40 | . . . . . 12 . 4 24 . . . . . . . . . . Robot Hit Streak 39 | 4 16 . . 2 11 39 3 15 . 11 6 . . 8 5 4 . 2 Robot Miss Streak 9 | 1 3 . . . 5 1 1 9 . 2 3 . . 2 1 2 . 2 Penetration Max . | . . . . . . . . . . . . . . . . . . . Secondary Targets 4 | . . . . . . . . 4 . . . . . . . . . . Max Gunslinging Chain 1 | . . . . . . . . 1 . . . . . . . . . . Capacitor 53 | . . . . . . . . . . . . . . 36 2 9 . 6 Shots Hit Robots 361 | 8 47 . . 1 38 57 3 125 . 31 12 . . 29 1 6 . 3 Core Hits 184 | 2 19 . . 3 37 13 5 73 . 8 8 . . 12 1 2 . 1 Critical Kills 2 | . . . . . . . . 2 . . . . . . . . . . Critical Parts Destroyed 4 | . . . . . . . . 4 . . . . . . . . . . Critical Strikes 21 | 1 4 . . . . . . 9 . 2 3 . . 2 . . . . Burn 15 | 1 4 . . . . . . 3 . 2 3 . . 2 . . . . Destroy 6 | . . . . . . . . 6 . . . . . . . . . . Melee Attacks 23 | . . . . . . . . . 1 10 . . 9 3 . . . . Impact . | . . . . . . . . . . . . . . . . . . . Slashing 23 | . . . . . . . . . 1 10 . . 9 3 . . . . Piercing . | . . . . . . . . . . . . . . . . . . . Sneak Attacks . | . . . . . . . . . . . . . . . . . . . Combat Hostiles . | . . . . . . . . . . . . . . . . . . . Follow-up Attacks . | . . . . . . . . . . . . . . . . . . . Damage Inflicted 9880 | 92 707 . . 125 1358 1185 232 3433 . 897 289 . . 930 52 408 . 172 Guns 4748 | 92 560 . . . 524 1154 19 2083 . 102 126 . . 88 . . . . Cannons 2355 | . . . . . . . . . . 726 163 . . 842 52 408 . 164 Explosions 2669 | . 147 . . 125 834 . 213 1350 . . . . . . . . . . Melee 69 | . . . . . . . . . . 69 . . . . . . . . Ramming 39 | . . . . . . 31 . . . . . . . . . . . 8 Kinetic 3160 | . . . . . 413 1154 19 1574 . . . . . . . . . . Thermal 4159 | 92 560 . . . 50 . 60 726 . 828 289 . . 930 52 408 . 164 Explosive 1056 | . 147 . . 125 784 . . . . . . . . . . . . . Electromagnetic 1397 | . . . . . 111 . 153 1133 . . . . . . . . . . Impact . | . . . . . . . . . . . . . . . . . . . Slashing 69 | . . . . . . . . . . 69 . . . . . . . . Piercing . | . . . . . . . . . . . . . . . . . . . Highest Corruption 9 | . . . . . . . . 9 9 2 2 2 . 2 2 4 4 . Average Corruption 4 | . . . . . . . . 6 9 2 2 2 . 1 2 3 4 . Corruption Purged . | . . . . . . . . . . . . . . . . . . . Corruption Blocked . | . . . . . . . . . . . . . . . . . . . Effects 40 | . . . . . . . . 10 10 1 4 1 . 5 3 6 . . Message Errors 9 | . . . . . . . . 2 2 1 1 . . 1 . 2 . . Matter Fused 9 | . . . . . . . . 2 4 . 1 . . 1 . 1 . . Heat Flow Errors 7 | . . . . . . . . 3 1 . . . . 1 1 1 . . Energy Discharges 5 | . . . . . . . . 1 1 . . 1 . . 1 1 . . Data Loss (minor) 8 | . . . . . . . . 1 2 . 2 . . 2 1 . . . Data Loss (major) 1 | . . . . . . . . . . . . . . . . 1 . . Misfires 1 | . . . . . . . . 1 . . . . . . . . . . Overload Shots 25 | . . . . . . . . . . . . . . 8 2 9 . 6 Effects 2 | . . . . . . . . . . . . . . 1 . 1 . . Energy Bleed 1 | . . . . . . . . . . . . . . . . 1 . . Heat Surge 1 | . . . . . . . . . . . . . . 1 . . . . Overflow Damage 152 | . . . . 13 32 . . 8 . 42 2 . . 25 . 30 . . Projectiles 89 | . . . . . . . . . . 32 2 . . 25 . 30 . . Explosions 53 | . . . . 13 32 . . 8 . . . . . . . . . . Melee 10 | . . . . . . . . . . 10 . . . . . . . . Knockbacks . | . . . . . . . . . . . . . . . . . . . Impact . | . . . . . . . . . . . . . . . . . . . Kinetic . | . . . . . . . . . . . . . . . . . . . Secondary . | . . . . . . . . . . . . . . . . . . . Self-Inflicted Damage 132 | . 9 . . . 50 15 . 54 . . . . . . . . . 4 Shots 10 | . 1 . . . 2 . . 7 . . . . . . . . . . Rammed 4 | . . . . . . 3 . . . . . . . . . . . 1 Targets Rammed 5 | . . . . . . 4 . . . . . . . . . . . 1 Kicked 1 | . . . . . . 1 . . . . . . . . . . . . Crushed . | . . . . . . . . . . . . . . . . . . . Highest Temperature 472 | 120 294 . . . 117 102 44 472 113 204 286 . . 380 243 418 . 238 Average Temperature 103 | 52 112 . . . 42 38 22 128 67 71 120 . . 54 91 172 . 95 Received Heat Transfer 1485 | . 207 . . . 477 114 12 200 . 84 9 . . 81 75 . . 226 Effects 14 | . . . . . . . . 11 . . . . . 1 . 2 . . Shutdowns 3 | . . . . . . . . 2 . . . . . . . 1 . . Energy Bleed 2 | . . . . . . . . 1 . . . . . . . 1 . . Interference 5 | . . . . . . . . 5 . . . . . . . . . . Matter Decay 1 | . . . . . . . . 1 . . . . . . . . . . Short Circuit 2 | . . . . . . . . 1 . . . . . 1 . . . . Damage (minor) 1 | . . . . . . . . 1 . . . . . . . . . . Siege Activations . | . . . . . . . . . . . . . . . . . . . Martial Activations . | . . . . . . . . . . . . . . . . . . . Shielding Activations . | . . . . . . . . . . . . . . . . . . . Robots Disrupted . | . . . . . . . . . . . . . . . . . . . Combat Hostiles . | . . . . . . . . . . . . . . . . . . . Robots Corrupted 2 | . . . . . . . . 2 . . . . . . . . . . Combat Hostiles 2 | . . . . . . . . 2 . . . . . . . . . . Parts Fried 8 | . . . . . . . 1 7 . . . . . . . . . . Impact Corruptions . | . . . . . . . . . . . . . . . . . . . Robots Melted 4 | . 1 . . . . . . 1 . 2 . . . . . . . . Combat Hostiles 4 | . 1 . . . . . . 1 . 2 . . . . . . . . Parts Melted 29 | 1 4 . . . . . . 8 . 3 2 . . 9 . 2 . . Heat Transferred 7908 | 322 1783 . . . 50 . 100 1503 . 1375 872 . . 1403 50 300 . 150 Parts Sabotaged . | . . . . . . . . . . . . . . . . . . . Parts Stolen . | . . . . . . . . . . . . . . . . . . . Parts Stripped . | . . . . . . . . . . . . . . . . . . . Power Chain Reactions 6 | . . . . . 1 . 1 4 . . . . . . . . . . Alert | -11 -10 -10 -10 -9 -8 -7 -7 -7 -6 -6 -6 -6 -5 -4 -4 -4 -4 -3 ------- Run | Yrd Mat Min Exi Min Mat Fac Low Zio Pro Fac Low Low Fac Fac Upp Upp War Pro Maximum Alert Level 3 | . . . . . 1 . . . . 3 . . . . . . . . Low Security (%) 88 | 100 100 100 . 100 60 100 . . . 71 . . 100 100 . . . . Level 1 7 | . . . . . 39 . . . . 9 . . . . . . . . Level 2 2 | . . . . . . . . . . 8 . . . . . . . . Level 3 2 | . . . . . . . . . . 9 . . . . . . . . Level 4 . | . . . . . . . . . . . . . . . . . . . Level 5 . | . . . . . . . . . . . . . . . . . . . High Security . | . . . . . . . . . . . . . . . . . . . Max Security . | . . . . . . . . . . . . . . . . . . . Peak Influence 750 | 5 119 33 . 100 276 85 . . . 750 . . 69 94 . . . . Initial 750 | . . 33 . . 5 85 . . . 750 . . 69 . . . . . Average 76 | 1 22 5 . 21 110 14 . . . 214 . . 21 24 . . . . Influence Increases 3208 | 10 286 . . 100 543 136 85 . . 981 255 . 39 238 45 50 . 440 Destroy 0b10 Robot/C 1220 | . 180 . . 80 400 80 60 . . 100 160 . . 100 . 40 . 20 Destroy 0b10 Robot/NC 50 | 10 10 . . . . 10 . . . 15 . . . 5 . . . . Destroy Leader 276 | . 40 . . 10 70 40 10 . . 34 20 . . 42 . 10 . . Allied During Kill 4 | . . . . . 4 . . . . . . . . . . . . . Successful Hack 110 | . 33 . . . 8 6 . . . 15 . . 8 40 . . . . Disable Machine 30 | . 15 . . . 15 . . . . . . . . . . . . . Destroy Structure 93 | . 8 . . 10 16 . . . . 7 . . 16 36 . . . . Advance Influence 750 | . . . . . . . . . . 750 . . . . . . . . Partial Spotted 30 | . . . . . . . . . . . . . 15 15 . . . . Lose Combat Pursuer 645 | . . . . . 30 . 15 . . 60 75 . . . 45 . . 420 Influence Decreases 3048 | 10 201 85 . 86 369 319 75 15 . 841 232 52 150 193 90 50 . 280 Entered New Map 326 | . . 52 . . 9 103 3 15 . . 52 32 42 . 18 . . . Time Decay 1992 | 10 191 33 . 86 230 197 72 . . 430 160 20 108 183 72 30 . 170 Search Patrol Dispatched 100 | . . . . . . . . . . 100 . . . . . . . . Lost Part 330 | . 10 . . . 130 19 . . . 11 20 . . 10 . 20 . 110 Purge Threat 300 | . . . . . . . . . . 300 . . . . . . . . Squads Dispatched 13 | . 2 . . . 3 1 . . . 2 . . 2 2 . . . 1 Investigation 2 | . 1 . . . 1 . . . . . . . . . . . . . Extermination 6 | . . . . . . 1 . . . 2 . . 1 2 . . . . Reinforcement 4 | . 1 . . . 2 . . . . . . . 1 . . . . . Assault 1 | . . . . . . . . . . . . . . . . . . 1 Garrison . | . . . . . . . . . . . . . . . . . . . Intercept . | . . . . . . . . . . . . . . . . . . . Searches Triggered 1 | . . . . . . . . . . 1 . . . . . . . . Construction Impeded 1 | . . . . . 1 . . . . . . . . . . . . . Haulers Reinforced . | . . . . . . . . . . . . . . . . . . . Active Scanning Responses . | . . . . . . . . . . . . . . . . . . . Cargo Convoy Interrupts . | . . . . . . . . . . . . . . . . . . . Stealth | -11 -10 -10 -10 -9 -8 -7 -7 -7 -6 -6 -6 -6 -5 -4 -4 -4 -4 -3 --------- Run | Yrd Mat Min Exi Min Mat Fac Low Zio Pro Fac Low Low Fac Fac Upp Upp War Pro Distress Signals 6 | . 1 . . . 4 . . . 1 . . . . . . . . . Communications Jammed 1 | . . . . . . . . . . . . . . 1 . . . . Distress Signals . | . . . . . . . . . . . . . . . . . . . Times Spotted 205 | . 18 . . 4 29 5 6 52 5 11 12 . . 10 15 2 . 36 Peak Tracking Total 16 | . 3 . . 4 16 1 4 8 2 4 5 . . 3 12 2 . 12 Tactical Retreats 26 | . . . . . 2 . 1 3 . 2 3 . . . 4 . . 11 Traps | -11 -10 -10 -10 -9 -8 -7 -7 -7 -6 -6 -6 -6 -5 -4 -4 -4 -4 -3 ------- Run | Yrd Mat Min Exi Min Mat Fac Low Zio Pro Fac Low Low Fac Fac Upp Upp War Pro Traps Triggered 4 | . 1 . . . 1 . . . . . . . 1 1 . . . . Indirectly . | . . . . . . . . . . . . . . . . . . . Trap Hack Attempts . | . . . . . . . . . . . . . . . . . . . Triggered . | . . . . . . . . . . . . . . . . . . . Disarmed 1 | . . . . . 1 . . . . . . . . . . . . . Reprogrammed . | . . . . . . . . . . . . . . . . . . . Reused . | . . . . . . . . . . . . . . . . . . . Traps Extracted . | . . . . . . . . . . . . . . . . . . . Installed . | . . . . . . . . . . . . . . . . . . . Triggered . | . . . . . . . . . . . . . . . . . . . Machines | -11 -10 -10 -10 -9 -8 -7 -7 -7 -6 -6 -6 -6 -5 -4 -4 -4 -4 -3 ---------- Run | Yrd Mat Min Exi Min Mat Fac Low Zio Pro Fac Low Low Fac Fac Upp Upp War Pro Machines Disabled 7 | . 1 . . . 1 . . 5 . . . . . . . . . . Max in Single Turn 2 | . 1 . . . 1 . . 2 . . . . . . . . . . Garrison Access 1 | . . . . . . . . . . . . . 1 . . . . . Machines Repaired . | . . . . . . . . . . . . . . . . . . . Machines Dismantled . | . . . . . . . . . . . . . . . . . . . Machines Sabotaged . | . . . . . . . . . . . . . . . . . . . Overloaded Fab Kills . | . . . . . . . . . . . . . . . . . . . Hacking | -11 -10 -10 -10 -9 -8 -7 -7 -7 -6 -6 -6 -6 -5 -4 -4 -4 -4 -3 --------- Run | Yrd Mat Min Exi Min Mat Fac Low Zio Pro Fac Low Low Fac Fac Upp Upp War Pro Machines Accessed 37 | . 4 . 3 1 5 1 . . 1 7 1 . 3 10 . . 1 . Terminals 20 | . 4 . . . 4 1 . . 1 6 . . 1 3 . . . . Fabricators 1 | . . . . . . . . . . . . . 1 . . . . . Repair Stations 5 | . . . . . 1 . . . . . . . . 4 . . . . Recycling Units . | . . . . . . . . . . . . . . . . . . . Scanalyzers 3 | . . . . . . . . . . 1 . . . 2 . . . . Garrison Access 2 | . . . . . . . . . . . . . 1 1 . . . . Total Hacks 125 | . 10 . 18 1 20 3 . . 1 25 1 . 11 31 . . 4 . Successful 77 | . 4 . 18 1 13 1 . . 1 13 1 . 5 16 . . 4 . Failed 48 | . 6 . . . 7 2 . . . 12 . . 6 15 . . . . Catastrophic 8 | . 1 . . . . . . . . 3 . . . 4 . . . . Database Lockouts . | . . . . . . . . . . . . . . . . . . . Manual 43 | . 9 . 1 . 10 3 . . . 11 . . 6 3 . . . . Terminals 64 | . 10 . . . 18 3 . . 1 22 . . 6 4 . . . . Fabricators 3 | . . . . . . . . . . . . . 3 . . . . . Repair Stations 23 | . . . . . 2 . . . . . . . . 21 . . . . Recycling Units . | . . . . . . . . . . . . . . . . . . . Scanalyzers 8 | . . . . . . . . . . 3 . . . 5 . . . . Garrison Access 3 | . . . . . . . . . . . . . 2 1 . . . . Terminal Hacks 47 | . 1 . 18 1 7 1 . . 1 9 1 . 3 1 . . 4 . Record 19 | . . . 17 . . . . . 1 1 . . . . . . . . Prototype ID Bank 6 | . . . . . 2 . . . . . . . . . . . 4 . Open Door 2 | . . . . 1 . . . . . . 1 . . . . . . . Level Access Points 1 | . . . . . . . . . . . . . 1 . . . . . Branch Access Points 1 | . . . . . . . . . . . . . . 1 . . . . Terminal Index 2 | . . . . . 1 1 . . . . . . . . . . . . Fabricator Index 1 | . . . . . . . . . . 1 . . . . . . . . Alert Level 3 | . . . . . . . . . . 3 . . . . . . . . Unreport Threat 2 | . . . . . . . . . . 2 . . . . . . . . Locate Traps 3 | . . . . . 1 . . . . 1 . . 1 . . . . . Disarm Traps 1 | . . . . . 1 . . . . . . . . . . . . . Assault Status 1 | . . . . . . . . . . 1 . . . . . . . . Hauler Manifests 2 | . . . . . 1 . . . . . . . 1 . . . . . Zone Layout 2 | . 1 . . . 1 . . . . . . . . . . . . . Proto ID Catalog 1 | . . . 1 . . . . . . . . . . . . . . . Fabricator Hacks . | . . . . . . . . . . . . . . . . . . . Repair Station Hacks 14 | . . . . . 2 . . . . . . . . 12 . . . . Scan Component 8 | . . . . . 1 . . . . . . . . 7 . . . . Repair 6 | . . . . . 1 . . . . . . . . 5 . . . . Recycling Unit Hacks . | . . . . . . . . . . . . . . . . . . . Scanalyzer 6 | . . . . . . . . . . 3 . . . 3 . . . . Insert Component 2 | . . . . . . . . . . 1 . . . 1 . . . . Analyze 1 | . . . . . . . . . . 1 . . . . . . . . Retrieve Study 3 | . . . . . . . . . . 1 . . . 2 . . . . Garrison Access Hacks 1 | . . . . . . . . . . . . . 1 . . . . . Seal Access 1 | . . . . . . . . . . . . . 1 . . . . . Unauthorized Hacks 9 | . 3 . . . 4 . . . . 1 . . 1 . . . . . Terminals 8 | . 3 . . . 4 . . . . 1 . . . . . . . . Assimilate 1 | . 1 . . . . . . . . . . . . . . . . . Botnet 7 | . 2 . . . 4 . . . . 1 . . . . . . . . Fabricators 1 | . . . . . . . . . . . . . 1 . . . . . Report 1 | . . . . . . . . . . . . . 1 . . . . . Repair Stations . | . . . . . . . . . . . . . . . . . . . Recycling Units . | . . . . . . . . . . . . . . . . . . . Scanalyzers . | . . . . . . . . . . . . . . . . . . . Garrison Access . | . . . . . . . . . . . . . . . . . . . Data Cores Recovered 2 | . 1 . . . . . . . . 1 . . . . . . . . Used . | . . . . . . . . . . . . . . . . . . . Hacking Detections 26 | . 4 . . . 4 1 . . . 7 . . 2 8 . . . . Full Trace Events 1 | . 1 . . . . . . . . . . . . . . . . . Feedback Events . | . . . . . . . . . . . . . . . . . . . Feedback Blocked . | . . . . . . . . . . . . . . . . . . . Robot Schematics Acquired 3 | . . . . . . . . 3 . . . . . . . . . . Robots Built . | . . . . . . . . . . . . . . . . . . . Authchips . | . . . . . . . . . . . . . . . . . . . Time . | . . . . . . . . . . . . . . . . . . . Total Robot Build Rating . | . . . . . . . . . . . . . . . . . . . Part Schematics Acquired 16 | . . . . . . . . 15 . 1 . . . . . . . . Parts Built . | . . . . . . . . . . . . . . . . . . . Authchips . | . . . . . . . . . . . . . . . . . . . Time . | . . . . . . . . . . . . . . . . . . . Total Part Build Rating . | . . . . . . . . . . . . . . . . . . . Part Studies Acquired 3 | . . . . . . . . . . 1 . . . 2 . . . . Parts Repaired 6 | . . . . . 1 . . . . . . . . 5 . . . . Time 263 | . . . . . 38 . . . . . . . . 225 . . . . Parts Recycled . | . . . . . . . . . . . . . . . . . . . Recycled Matter . | . . . . . . . . . . . . . . . . . . . Retrieved Matter . | . . . . . . . . . . . . . . . . . . . Retrieved Components . | . . . . . . . . . . . . . . . . . . . Parts Scanalyzed 1 | . . . . . . . . . . 1 . . . . . . . . Part Schematics Acquired 1 | . . . . . . . . . . 1 . . . . . . . . Parts Damaged . | . . . . . . . . . . . . . . . . . . . Bothacking | -11 -10 -10 -10 -9 -8 -7 -7 -7 -6 -6 -6 -6 -5 -4 -4 -4 -4 -3 ------------ Run | Yrd Mat Min Exi Min Mat Fac Low Zio Pro Fac Low Low Fac Fac Upp Upp War Pro Used RIF Installer . | . . . . . . . . . . . . . . . . . . . Robots Hacked . | . . . . . . . . . . . . . . . . . . . Non-combat . | . . . . . . . . . . . . . . . . . . . Combat . | . . . . . . . . . . . . . . . . . . . Robot Hacks Applied . | . . . . . . . . . . . . . . . . . . . Relay Couplers Released . | . . . . . . . . . . . . . . . . . . . Fabnet Peak Effective % . | . . . . . . . . . . . . . . . . . . . Robots Rewired . | . . . . . . . . . . . . . . . . . . . Allies Hacked . | . . . . . . . . . . . . . . . . . . . Hacks Repelled . | . . . . . . . . . . . . . . . . . . . Allies | -11 -10 -10 -10 -9 -8 -7 -7 -7 -6 -6 -6 -6 -5 -4 -4 -4 -4 -3 -------- Run | Yrd Mat Min Exi Min Mat Fac Low Zio Pro Fac Low Low Fac Fac Upp Upp War Pro Total Allies 1 | . . . . 1 . . . . . . . . . . . . . . Largest Group 1 | . . . . 1 1 . . . . . . . . . . . . . Highest-Rated Group 31 | . . . . 31 31 . . . . . . . . . . . . . Highest-Rated Ally 31 | . . . . 31 31 . . . . . . . . . . . . . Total Orders . | . . . . . . . . . . . . . . . . . . . Ally Attacks 9 | . . . . . 9 . . . . . . . . . . . . . Total Damage 123 | . . . . . 123 . . . . . . . . . . . . . Kills 3 | . . . . . 3 . . . . . . . . . . . . . Allies Corrupted . | . . . . . . . . . . . . . . . . . . . Allies Melted . | . . . . . . . . . . . . . . . . . . . Intel | -11 -10 -10 -10 -9 -8 -7 -7 -7 -6 -6 -6 -6 -5 -4 -4 -4 -4 -3 ------- Run | Yrd Mat Min Exi Min Mat Fac Low Zio Pro Fac Low Low Fac Fac Upp Upp War Pro Active Infowar (turns) 6340 | 26 651 244 211 424 411 . . 5 330 1234 335 47 327 764 183 224 528 396 Terrain 4456 | . . . . . 406 . . . 330 1234 335 47 282 694 183 224 528 193 Seismic 1924 | 26 651 244 211 424 368 . . . . . . . . . . . . . Machine Analysis 4029 | . . . . . . . . . . 1225 335 47 327 764 183 224 528 396 Cloaking 1197 | . . . . . 2 . . 5 . 1131 59 . . . . . . . Jamming 752 | . . . . . . . . . . . . . 112 640 . . . . Robot Analysis Total . | . . . . . . . . . . . . . . . . . . . Derelict Logs Recovered 12 | . . . . 2 . . . 1 2 . 3 2 . . 1 1 . . Drone Launches . | . . . . . . . . . . . . . . . . . . . Drone Recoveries . | . . . . . . . . . . . . . . . . . . . Exploration | -11 -10 -10 -10 -9 -8 -7 -7 -7 -6 -6 -6 -6 -5 -4 -4 -4 -4 -3 ------------- Run | Yrd Mat Min Exi Min Mat Fac Low Zio Pro Fac Low Low Fac Fac Upp Upp War Pro Turns Passed 8935 | 110 651 244 211 424 686 853 236 1151 331 1234 335 47 327 764 183 224 528 396 Spaces Moved 8554 | 53 307 251 221 332 575 673 459 945 264 701 590 116 498 683 342 372 525 647 Core 393 | 5 . . . . 2 . . 15 . . . . . . . . . 371 Treads 355 | 48 307 . . . . . . . . . . . . . . . . . Legs 1433 | . . . . . 124 255 . 193 264 597 . . . . . . . . Wheels 808 | . . 251 221 332 4 . . . . . . . . . . . . . Hover 5565 | . . . . . 445 418 459 737 . 104 590 116 498 683 342 372 525 276 Flight . | . . . . . . . . . . . . . . . . . . . Fastest Speed 36 | 50 160 95 95 95 52 48 48 45 120 40 40 40 36 36 40 40 48 48 Average Speed 72 | 149 160 95 95 95 73 80 48 71 120 109 40 40 38 39 47 51 88 58 Slowest Speed 260 | 160 160 95 95 95 200 260 48 190 120 186 40 40 43 45 92 104 104 200 Overloaded Moves . | . . . . . . . . . . . . . . . . . . . Propulsion Burnouts . | . . . . . . . . . . . . . . . . . . . Robots Hopped . | . . . . . . . . . . . . . . . . . . . Potential Cave-ins 2 | . . . . . . . . . . . . . . 2 . . . . Cave-ins Triggered . | . . . . . . . . . . . . . . . . . . . Exploration Rate (%) 49 | 4 54 68 63 70 45 19 51 87 49 25 83 21 15 30 53 58 74 70 Regions Visited 18 Branch Regions 12 Pre-discovered Areas 4 | . . . . . . . . 3 . . . . . . 1 . . . Known Exits Taken 6 | . . . . . 1 1 . . . 1 . 1 1 1 . . . . Unknown Exits Taken 12 | 1 1 1 1 1 . . 1 1 1 . 1 . . . 1 1 1 . Scrap Searched 10 | . . . . . . . 1 3 2 . 2 . . . 1 . . 1 Spaces Dug 34 | . . . . . . . . . . 7 . . 9 18 . . . . Terrain Destroyed 83 | . 7 . . 10 15 . 3 . . 7 4 . 9 21 1 3 . 3 Melee 19 | . . . . . . . . . . 7 . . 9 3 . . . . Projectile 29 | . . . . . . . . . . . 4 . . 18 1 3 . 3 AOE 35 | . 7 . . 10 15 . 3 . . . . . . . . . . . Terrain Rammed . | . . . . . . . . . . . . . . . . . . . Walls Destroyed . | . . . . . . . . . . . . . . . . . . . Machines Disabled . | . . . . . . . . . . . . . . . . . . . Actions | -11 -10 -10 -10 -9 -8 -7 -7 -7 -6 -6 -6 -6 -5 -4 -4 -4 -4 -3 --------- Run | Yrd Mat Min Exi Min Mat Fac Low Zio Pro Fac Low Low Fac Fac Upp Upp War Pro Total 10717 | 68 406 256 222 441 781 919 467 1230 275 1114 665 115 620 1142 359 393 586 658 Wait 1544 | . 50 2 . 101 143 161 4 129 2 333 53 . 99 383 12 10 61 1 Move 8536 | 52 306 250 220 331 574 672 458 944 263 700 589 115 497 682 341 371 524 647 Hop . | . . . . . . . . . . . . . . . . . . . Pick Up 67 | 3 10 2 1 2 9 14 . 7 3 10 2 . 1 1 . 1 1 . Fast Attach 67 | 7 . . . . 8 8 . 15 3 8 1 . 4 10 1 1 . 1 Attach 34 | . . 1 . . 9 4 . 7 3 6 1 . 1 . 1 1 . . Detach 4 | . . . . . 1 . . . . 3 . . . . . . . . Swap 57 | . 3 . . 3 5 8 1 19 . 7 3 . 4 3 1 . . . Drop 58 | . 6 1 1 3 3 12 . 6 . 9 3 . 5 6 1 . . 2 Fire 322 | 6 31 . . 1 29 36 4 103 . 28 13 . . 54 2 9 . 6 Melee 23 | . . . . . . . . . 1 10 . . 9 3 . . . . Ram 4 | . . . . . . 3 . . . . . . . . . . . 1 Kick 1 | . . . . . . 1 . . . . . . . . . . . . Crush . | . . . . . . . . . . . . . . . . . . . Escape Stasis . | . . . . . . . . . . . . . . . . . . . Rewire . | . . . . . . . . . . . . . . . . . . . Trap . | . . . . . . . . . . . . . . . . . . . Miscellaneous . | . . . . . . . . . . . . . . . . . . . Route ------- -11/Scrapyard -10/Materials (discovered 2 exits: [*Mat] / [*Min]) -10/Mines (discovered 2 exits: [*Mat] / *Exi) -10/Exiles -9/Mines -8/Materials (discovered 2 exits: *Fac x2) -7/Factory -7/Lower Caves -7/Zion -6/Proximity Caves -6/Factory (discovered 2 exits: Fac / *Low) -6/Lower Caves -6/Lower Caves -5/Factory (discovered 4 exits: *Fac x4) -4/Factory (discovered 6 exits: *Res x2 / *Upp x2 / Ext x2) -4/Upper Caves -4/Upper Caves -4/Warlord -3/Proximity Caves (discovered 1 exit: Res) History --------- Turn | Location | Event 13 | -11/Scrapyard | Discovered new exit (range 15) 111 | -11/Scrapyard | Entered Materials 302 | -10/Materials | Build established: Mutant 345 | -10/Materials | Discovered new exit (range 11) 749 | -10/Materials | Discovered new exit (range 9) 762 | -10/Materials | Entered Mines 799 | -10/Mines | Met a Derelict bent on vengeance 805 | -10/Mines | Found a damaged Exp. Sensor Array with a note attached 807 | -10/Mines | Found Prototype Device 880 | -10/Mines | Discovered new exit (range 9) 1002 | -10/Mines | Deemed a non-threat by the Exiles lab entrance 1002 | -10/Mines | Discovered new exit (range 5) 1006 | -10/Mines | Entered Exiles 1029 | -10/Exiles | Met 8R-AWN 1045 | -10/Exiles | Met EX-HEX 1072 | -10/Exiles | Met EX-BIN 1083 | -10/Exiles | Aligned with FarCom system 1084 | -10/Exiles | Given EX-Vault access code 1121 | -10/Exiles | Opened EX-Vault 1130 | -10/Exiles | Found Cloak of Protection 1150 | -10/Exiles | Warned to stay clear of 0b10 Research branches 1176 | -10/Exiles | Met EX-DEC 1209 | -10/Exiles | Discovered new exit (range 10) 1217 | -10/Exiles | Left Exiles lab with Cloak of Protection 1217 | -10/Exiles | Entered Mines 1218 | -9/Mines | YI-UF0 nonchalantly dropped a Grenade Launcher on the ground 1236 | -9/Mines | Learned location of 1 exit from Materials 1508 | -9/Mines | Received a Mining Laser from a helpful Derelict 1583 | -9/Mines | Found the Drone Emporium 1631 | -9/Mines | Discovered new exit (range 8) 1641 | -9/Mines | Entered Materials 1641 | -8/Materials | Accompanied by 1 ally 1641 | -8/Materials | Evolved 4 slots: Propulsion x1, Utility x3 1642 | -8/Materials | Identified exit to Factory 1931 | -8/Materials | Build established: Scout 2065 | -8/Materials | Destroyed 13 combat bots 2118 | -8/Materials | Lost 13 parts (2p4n4u3w) 2156 | -8/Materials | Core integrity fell below 50% 2243 | -8/Materials | Discovered exit to Factory (range 5) 2293 | -8/Materials | Repaired Lgt. Nuclear Core 2327 | -8/Materials | Entered Factory 2327 | -7/Factory | Evolved 2 slots: Power x1, Propulsion x1 2328 | -7/Factory | Identified exit to Lower Caves 2443 | -7/Factory | Build established: Scavenger-Mutant 3180 | -7/Factory | Entered Lower Caves 3272 | -7/Lower Caves | Spotted B-75 Beast 3379 | -7/Lower Caves | Encountered a Warlord checkpoint 3413 | -7/Lower Caves | A Derelict revealed a hidden shortcut to a safe place 3416 | -7/Lower Caves | Entered Zion 3447 | -7/Zion | Given the Hacking Drone Bay 3547 | -7/Zion | Learned location of Warlord (-4) 3594 | -7/Zion | Learned location of Extension (-4) 3641 | -7/Zion | Learned location of Data Miner (-6) 3738 | -7/Zion | Build established: Mutant 3765 | -7/Zion | Rebuked by Imprinter 3772 | -7/Zion | Attempted to imprint without authorization 3772 | -7/Zion | Attacked by Zionites 4084 | -7/Zion | Build established: Scavenger-Mutant 4107 | -7/Zion | Learned 12 Factory zone layouts 4156 | -7/Zion | Lost 3 parts (2n1u) 4296 | -7/Zion | Spotted RE-QN4(B) 4335 | -7/Zion | Lost 3 parts (2p1w) 4367 | -7/Zion | Destroyed RE-QN4(B) 4397 | -7/Zion | Lost 4 parts (1p1n2w) 4407 | -7/Zion | Spotted 4C-XHR(B) 4427 | -7/Zion | Core integrity fell below 50% 4495 | -7/Zion | Core integrity fell below 20% 4520 | -7/Zion | Lost 7 parts (3n3u1w) 4558 | -7/Zion | Discovered new exit (range 10) 4567 | -7/Zion | Entered Proximity Caves 4569 | -6/Proximity Caves | Spotter reported a threat 4570 | -6/Proximity Caves | Spotter reported a threat 4584 | -6/Proximity Caves | Lost 3 parts (2n1w) 4755 | -6/Proximity Caves | Spotter reported a threat 4799 | -6/Proximity Caves | Spotter reported a threat 4810 | -6/Proximity Caves | Spotter reported a threat 4853 | -6/Proximity Caves | Learned Factory stockpile data 4883 | -6/Proximity Caves | Discovered new exit (range 10) 4898 | -6/Proximity Caves | Entered Factory 4898 | -6/Factory | Evolved 2 slots: Utility x2 4899 | -6/Factory | Identified exit to Lower Caves 4900 | -6/Factory | Identified exit to Factory 5248 | -6/Factory | Search patrols dispatched 5298 | -6/Factory | Build established: Derelict-Assassin 5816 | -6/Factory | Build established: Scavenger-Assassin 5981 | -6/Factory | Lost 3 parts (3n) 6132 | -6/Factory | Entered Lower Caves 6190 | -6/Lower Caves | Attracted the attention of an 0b10 outpost 6190 | -6/Lower Caves | Spotted B-75 Beast 6233 | -6/Lower Caves | Learned Factory stockpile data 6309 | -6/Lower Caves | Learned Factory emergency access door positions 6346 | -6/Lower Caves | Found Prototype Device 6458 | -6/Lower Caves | Discovered new exit (range 14) 6467 | -6/Lower Caves | Entered another Lower Caves area 6469 | -6/Lower Caves | Learned Factory stockpile data 6494 | -6/Lower Caves | Learned Factory terminal intel 6511 | -6/Lower Caves | Discovered exit to Factory (range 7) 6514 | -6/Lower Caves | Entered Factory 6514 | -5/Factory | Evolved 2 slots: Propulsion x1, Utility x1 6517 | -5/Factory | Loaded intel: 25 terminal locations 6535 | -5/Factory | Allied Derelicts emerged from ambush trap array 6543 | -5/Factory | Build established: Hacker-Scout 6722 | -5/Factory | Identified Heart of Steel 6794 | -5/Factory | Discovered new exit (range 14) 6824 | -5/Factory | Identified exit to Factory 6841 | -5/Factory | Entered another Factory area 6841 | -4/Factory | Evolved 2 slots: Utility x2 6842 | -4/Factory | Identified exit to Extension 6996 | -4/Factory | Repaired Imp. Terrain Scanner 7053 | -4/Factory | Repaired Neutrino Core 7080 | -4/Factory | Found Quantum Capacitor 7124 | -4/Factory | Repaired Cld. Particle Cannon 7130 | -4/Factory | Discovered new exit (range 15) 7236 | -4/Factory | Discovered exit to Extension (range 16) 7266 | -4/Factory | Repaired Cld. Aerolev Unit 7390 | -4/Factory | Repaired Mic. Fission Core 7482 | -4/Factory | Discovered new exit (range 10) 7515 | -4/Factory | Identified exit to Upper Caves 7605 | -4/Factory | Entered Upper Caves 7673 | -4/Upper Caves | Attacked by a faux Warlord 7737 | -4/Upper Caves | Learned location of Testing (-3) 7785 | -4/Upper Caves | Discovered new exit (range 8) 7788 | -4/Upper Caves | Entered another Upper Caves area 7878 | -4/Upper Caves | Lost 4 parts (2n1u1w) 7997 | -4/Upper Caves | Learned location of 1 exit from Proximity Caves 8002 | -4/Upper Caves | Discovered new exit (range 9) 8012 | -4/Upper Caves | Entered Warlord 8049 | -4/Warlord | System corruption cleaned by Quarantine Array 8279 | -4/Warlord | Build established: Hacker-Skirmisher 8427 | -4/Warlord | Met Warlord 8452 | -4/Warlord | Warlord's base attacked by MAIN.C 8534 | -4/Warlord | Discovered new exit (range 15) 8540 | -4/Warlord | Entered Proximity Caves 8541 | -3/Proximity Caves | Identified exit to Research 8590 | -3/Proximity Caves | Spotter reported a threat 8590 | -3/Proximity Caves | Spotter reported a threat 8634 | -3/Proximity Caves | Attracted the attention of an 0b10 outpost 8702 | -3/Proximity Caves | Spotter reported a threat 8704 | -3/Proximity Caves | Spotter reported a threat 8740 | -3/Proximity Caves | Core integrity fell below 50% 8773 | -3/Proximity Caves | Lost 8 parts (1p2n4u1w) 8870 | -3/Proximity Caves | Attracted the attention of an 0b10 checkpoint 8923 | -3/Proximity Caves | Core integrity fell below 20% 8936 | -3/Proximity Caves | Destroyed by S-43 Plague with Heavy Machine Gun Last Messages --------------- 08704_ N-01 Spotter sends a signal. 08704_ ALERT: Unidentified potential threat approaching Complex 0b10. 08725_ Cld. Aerolev Unit destroyed. 08728_ Cld. Particle Cannon destroyed. 08729_ System Restoration Module destroyed. 08730_ Dropped Hardcell Cannon. 08730_ Imp. Antigrav System destroyed. 08730_ Mic. Fission Core+ destroyed. 08732_ System Shield destroyed. 08733_ Imp. Terrain Scanner severed. 08740_ Quantum Capacitor destroyed. 08742_ Hacking Suite destroyed. 08763_ Dropped Mic. Fission Core+. 08869_ Slug penetrates Wall. 08870_ Y-72 Warden: "INTERCEPTING UNREGISTERED DERELICT." 08872_ Slug penetrates Wall. 08880_ Penetrated by Slug. 08898_ Imp. Hacking Suite destroyed. Map ----- +----------------------------------------------------+ | ??#??#?##### ### ###### | | ?##?#?## ??## ###### | | ?#??### ## ####?# ### ##### | | ?????#""" ## ## ####?# ##### | | ????## "#" #?#### ######### | | ???####### ##?#?# ####?## ## | | #???????# ####?# ##### ### | | ?#####??# #### ## #?## !] ##?# | | ???###?### * ### ### ######## | | #?#?#???###### #?# ##?#?### | | #?#?#?#?###### ######## ### #??##### | | #?######?# ## #######?# ### ###?#?# | | ??##????## #?#??# #### ### | | ????#????# ### #????####?# ## | | ##????#### #?## #???????## ## ### | | #???##?## ##?## ##? ?#??# ### #### | | ?#?????# ###?# ?? ?? #####?# #?### | | ????#### #?## ??? ?##?#? ##?#?## | | ???## ## ##?# ##??? #?#?????###??#??? | | #### ##?# #?????????#?? ??#?###?#? | | #??## #??#???????#?????#?????# | | ###???# ##????#???????????#????? | | #### ###????? ##??#####???#????#????? | | ###? ###?#?#? ?? #??# #?????#??????#? | | ### #?????? ????? #??# ??####???????# | | ??# ? ??????????#@ ##? ?? #??????## | | #?### ???#?##?### ### ???# #?###### | | ????#### #????#### ## ???# #?# | | ##?????# #????# # #???# #?# | | #???##? #??#### s # ##### #?# | | ??????? ##### ####s ## ## ## # #?# ### | | ??#???? ####?# ###s #?#### # # #?# #?# | | ? ?#????###???## ## ###### ### #?# | | ??????????????# ## % #?# | | ????? ????????# p ###### ## ### | | ?????????????# ## ##???### ### ###### | | ??????????????# #; "####??#### ##???# | | ??????????????# ## ##??## #??## | | ??????????????# " #??# ##?# | | ??????????????# "# # ##?## #?# | | ??????????????## ####### ## #??# #?## | | ??????????????## #?????# ### #?# #??## | | ??????#####???# ####### #?# ##?# #???# | | ####### #???# #####??## ###?# | | ##??# #### # #?????## ### | | ##?# #??# #### #?###??# | | ###### ### #??# #??# ### #??## | | #????## #??# #??# ## ##??# #### | | ###?????# #??# #??# #### ####??## | | ????????## #### #??###### ##??????? | +----------------------------------------------------+ Best States ------------- Heat Dissipation 48 Energy Generation 32 Energy Capacity 570 Matter Stores 300 Matter Capacity 350 Sight Range 16 Terrain Scan Range 16 Terrain Scan Density 210 Jamming Range 14 Cloak Strength 5 Additional Mass Support 9 Armor Coverage 225 Power Shielding 15 Weapon Shielding 66 Evasion (%) 57 Targeting Accuracy 6 Target Analysis 5 Recoil Reduction 2 Kinecelleration 30 Offensive Hacking 22 Defensive Hacking 10 Item Schematics ----------------- Hvy. Missile Launcher | -7/Zion | Archive Plasma Rifle | -7/Zion | Archive Hpw. Shock Rifle | -7/Zion | Archive Hvy. Laser | -7/Zion | Archive Drone Bay | -7/Zion | Archive Plasma Cannon | -7/Zion | Archive Imp. Focal Shield | -7/Zion | Archive Imp. Coolant Injector | -7/Zion | Archive Imp. Field Recycling Unit | -7/Zion | Archive Adv. Terrain Scanner | -7/Zion | Archive Lyr. Light Armor Plating | -7/Zion | Archive Imp. Proton Missile Launcher | -7/Zion | Archive Med. Reactive Plating | -7/Zion | Archive Arm. Leg | -7/Zion | Archive Imp. EM Pulse Cannon | -7/Zion | Archive Gravmag System | -6/Factory | Scanalyzed Robot Schematics ------------------ B-48 Gladiator | -7/Zion | Archive H-55 Commando | -7/Zion | Archive R-06 Scavenger | -7/Zion | Archive Fabricated ------------ Nothing Repaired ---------- Lgt. Nuclear Core | 36% | -8/Materials Imp. Terrain Scanner | 31% | -4/Factory Neutrino Core | 37% | -4/Factory Cld. Particle Cannon | 54% | -4/Factory Cld. Aerolev Unit | 33% | -4/Factory Mic. Fission Core | 58% | -4/Factory Studied --------- Imp. Hover Unit | -6/Factory | Hacked Mic. Fission Core | -4/Factory | Hacked Gravmag Array | -4/Factory | Hacked Alien Tech Used ----------------- None Achievements -------------- A Powerful Ally? Adventurer Look Less Dangerous Next Time Monster Overkill Resistances Are Futile Suspicious Challenges ------------ None Game ------ Seed AmuletCoordinationShredder Manual? 0 Play Time 03:36:20 Cumulative 52.0 hours Start 2026.08.19 @ 08:49:52 End 2026.08.19 @ 15:16:53 Sessions 1 Manual Loads 0 Difficulty Rogue Special Mode None Game No. 72 Rogue 72 Adventurer 0 Explorer 0 Win Type - Total 0 Types 0/0/0/0/0/0/0/0/0/0 Lore% 49 Gallery% 36 Achievement% 27 Wizard Run 0 Options --------- Layout 1 ASCII 0 Keyboard 0 Movement Numpad Keybinds 0 Fullscreen 2 Font 24/Smallcaps Map View 50x35 Zoom Use 0% Tactical HUD 1 Map Filters NONE Filters NONE Steam 1 RUN: 9887b507-9101-447e-aabc-4bf63fdeeea6